[Event "*** Titled Tuesday Blitz"]
[Site "Chess.com"]
[Date "2020.04.21"]
[Round "5"]
[White "dey2580"]
[Black "narutosmith"]
[Result "1/2-1/2"]
[WhiteElo "2449"]
[BlackElo "2264"]
[TimeControl "180+1"]
[EndTime "10:57:57 PDT"]
[Termination "Game drawn by repetition"]

1. d4 {[%clk 0:02:58]} 1... Nf6 {[%clk 0:02:59.4]} 2. Nf3 {[%clk 0:02:57.6]}
2... e6 {[%clk 0:02:58.9]} 3. g3 {[%clk 0:02:56.9]} 3... g6 {[%clk 0:02:57.5]}
4. Bg2 {[%clk 0:02:47.6]} 4... Bg7 {[%clk 0:02:58.1]} 5. O-O {[%clk 0:02:46.1]}
5... O-O {[%clk 0:02:58.7]} 6. c4 {[%clk 0:02:45.5]} 6... d6 {[%clk 0:02:58.4]}
7. Nc3 {[%clk 0:02:44.8]} 7... Nc6 {[%clk 0:02:57.4]} 8. Qc2 {[%clk 0:02:35.8]}
8... a6 {[%clk 0:02:56.3]} 9. Rd1 {[%clk 0:02:35]} 9... Rb8 {[%clk 0:02:55.7]}
10. h3 {[%clk 0:02:30.3]} 10... Bd7 {[%clk 0:02:52.6]} 11. Bg5 {[%clk
0:02:28.4]} 11... h6 {[%clk 0:02:51.9]} 12. Be3 {[%clk 0:02:27.4]} 12... Kh7
{[%clk 0:02:48]} 13. a3 {[%clk 0:02:26]} 13... e5 {[%clk 0:02:44]} 14. dxe5
{[%clk 0:02:24.6]} 14... dxe5 {[%clk 0:02:44.9]} 15. Bc5 {[%clk 0:02:22.9]}
15... Re8 {[%clk 0:02:44.3]} 16. Nd5 {[%clk 0:02:22.4]} 16... Qc8 {[%clk
0:02:22.1]} 17. g4 {[%clk 0:02:12.7]} 17... e4 {[%clk 0:02:00]} 18. Nh2 {[%clk
0:01:52.6]} 18... b5 {[%clk 0:01:47.9]} 19. Rac1 {[%clk 0:01:12.6]} 19... bxc4
{[%clk 0:01:34.1]} 20. Qxc4 {[%clk 0:01:12]} 20... Be6 {[%clk 0:01:19.3]} 21.
Nxf6+ {[%clk 0:01:06.4]} 21... Bxf6 {[%clk 0:01:18.9]} 22. Qxe4 {[%clk
0:01:06.2]} 22... Na5 {[%clk 0:01:12.5]} 23. b4 {[%clk 0:01:01.4]} 23... Bb3
{[%clk 0:01:03.9]} 24. Qf3 {[%clk 0:00:56.7]} 24... Bxd1 {[%clk 0:00:57.7]} 25.
Qxf6 {[%clk 0:00:56.1]} 25... Qe6 {[%clk 0:00:44.8]} 26. Qxe6 {[%clk 0:00:54.2]}
26... Rxe6 {[%clk 0:00:45.7]} 27. Rxd1 {[%clk 0:00:54.1]} 27... Nb3 {[%clk
0:00:44.2]} 28. Bd5 {[%clk 0:00:52.9]} 28... Nxc5 {[%clk 0:00:39.9]} 29. Bxe6
{[%clk 0:00:51.2]} 29... Nxe6 {[%clk 0:00:40]} 30. Rd7 {[%clk 0:00:47.9]} 30...
Kg7 {[%clk 0:00:38.7]} 31. Nf3 {[%clk 0:00:47.9]} 31... Rd8 {[%clk 0:00:29]} 32.
Rxd8 {[%clk 0:00:47.5]} 32... Nxd8 {[%clk 0:00:29.9]} 33. Nd4 {[%clk 0:00:46.5]}
33... Kf6 {[%clk 0:00:28.4]} 34. f4 {[%clk 0:00:46.2]} 34... Ke7 {[%clk
0:00:26.5]} 35. e4 {[%clk 0:00:46]} 35... Kd6 {[%clk 0:00:26.4]} 36. Kf2 {[%clk
0:00:46]} 36... c5 {[%clk 0:00:26.6]} 37. bxc5+ {[%clk 0:00:45.8]} 37... Kxc5
{[%clk 0:00:27.5]} 38. Ke3 {[%clk 0:00:46.4]} 38... Kc4 {[%clk 0:00:27.7]} 39.
e5 {[%clk 0:00:44.3]} 39... Kd5 {[%clk 0:00:27.5]} 40. Kd3 {[%clk 0:00:42.4]}
40... Nb7 {[%clk 0:00:27.6]} 41. Nc2 {[%clk 0:00:40.8]} 41... Nc5+ {[%clk
0:00:27.2]} 42. Kc3 {[%clk 0:00:41]} 42... Ne4+ {[%clk 0:00:25.3]} 43. Kb4
{[%clk 0:00:40.4]} 43... Nf2 {[%clk 0:00:20.6]} 44. Ka5 {[%clk 0:00:40.1]} 44...
Nxh3 {[%clk 0:00:20.7]} 45. Kxa6 {[%clk 0:00:40.1]} 45... Nxf4 {[%clk 0:00:21]}
46. Kb5 {[%clk 0:00:35.5]} 46... Ne6 {[%clk 0:00:20.7]} 47. a4 {[%clk
0:00:29.8]} 47... Kxe5 {[%clk 0:00:21]} 48. Kb6 {[%clk 0:00:28.4]} 48... Kd6
{[%clk 0:00:21]} 49. Nd4 {[%clk 0:00:26.3]} 49... Nc7 {[%clk 0:00:19.8]} 50. a5
{[%clk 0:00:26.3]} 50... Kd7 {[%clk 0:00:18.5]} 51. Kb7 {[%clk 0:00:23.6]} 51...
h5 {[%clk 0:00:16.2]} 52. gxh5 {[%clk 0:00:23.3]} 52... gxh5 {[%clk 0:00:15.7]}
53. Nf3 {[%clk 0:00:23.8]} 53... f5 {[%clk 0:00:14.4]} 54. Ne5+ {[%clk
0:00:23.3]} 54... Kd6 {[%clk 0:00:14.1]} 55. Nf7+ {[%clk 0:00:23]} 55... Kd7
{[%clk 0:00:14.1]} 56. Ne5+ {[%clk 0:00:21.3]} 56... Kd8 {[%clk 0:00:13.6]} 57.
Nc6+ {[%clk 0:00:18.9]} 57... Kd7 {[%clk 0:00:13.8]} 58. Ne5+ {[%clk 0:00:19]}
1/2-1/2

[Event "*** Titled Tuesday Blitz"]
[Site "Chess.com"]
[Date "2020.04.21"]
[Round "5"]
[White "KNVB"]
[Black "noblerone"]
[Result "1-0"]
[WhiteElo "2762"]
[BlackElo "2452"]
[TimeControl "180+1"]
[EndTime "10:57:58 PDT"]
[Termination "KNVB won by resignation"]

1. c4 {[%clk 0:03:00.9]} 1... c6 {[%clk 0:02:59]} 2. d4 {[%clk 0:02:56.4]} 2...
d5 {[%clk 0:02:58.9]} 3. Nf3 {[%clk 0:02:56.2]} 3... Nf6 {[%clk 0:02:58.7]} 4.
e3 {[%clk 0:02:56]} 4... Bg4 {[%clk 0:02:58]} 5. Nc3 {[%clk 0:02:55.1]} 5... e6
{[%clk 0:02:58.1]} 6. h3 {[%clk 0:02:55.7]} 6... Bh5 {[%clk 0:02:57.9]} 7. Qb3
{[%clk 0:02:51.9]} 7... Qb6 {[%clk 0:02:47.5]} 8. g4 {[%clk 0:02:51.7]} 8... Bg6
{[%clk 0:02:47.4]} 9. Qxb6 {[%clk 0:02:35.9]} 9... axb6 {[%clk 0:02:46.9]} 10.
Ne5 {[%clk 0:02:36.8]} 10... Nbd7 {[%clk 0:02:44.7]} 11. Nxg6 {[%clk 0:02:37.1]}
11... hxg6 {[%clk 0:02:45.6]} 12. g5 {[%clk 0:02:08]} 12... Ng8 {[%clk
0:02:32.8]} 13. cxd5 {[%clk 0:02:07.8]} 13... exd5 {[%clk 0:02:32.9]} 14. e4
{[%clk 0:02:08.3]} 14... dxe4 {[%clk 0:02:29.2]} 15. Nxe4 {[%clk 0:02:09.2]}
15... Bb4+ {[%clk 0:02:28.4]} 16. Nc3 {[%clk 0:01:56.9]} 16... Ne7 {[%clk
0:02:19.1]} 17. Bd2 {[%clk 0:01:51.4]} 17... Nf5 {[%clk 0:02:02.7]} 18. d5
{[%clk 0:01:51.3]} 18... O-O {[%clk 0:00:59.5]} 19. O-O-O {[%clk 0:01:36.7]}
19... Ne5 {[%clk 0:00:49]} 20. dxc6 {[%clk 0:00:54.8]} 20... bxc6 {[%clk
0:00:49.9]} 21. Bf4 {[%clk 0:00:43.6]} 21... Nf3 {[%clk 0:00:33.2]} 22. Bg2
{[%clk 0:00:37.5]} 22... N3d4 {[%clk 0:00:30.5]} 23. Kb1 {[%clk 0:00:31]} 23...
Rad8 {[%clk 0:00:24]} 24. Rd3 {[%clk 0:00:23.5]} 24... Bxc3 {[%clk 0:00:20.2]}
25. bxc3 {[%clk 0:00:12.3]} 25... Ne2 {[%clk 0:00:20.2]} 26. Rxd8 {[%clk
0:00:09.1]} 26... Rxd8 {[%clk 0:00:21.1]} 27. Bc7 {[%clk 0:00:09.8]} 27... Rc8
{[%clk 0:00:21.2]} 28. Be5 {[%clk 0:00:08.1]} 28... Re8 {[%clk 0:00:18.5]} 29.
f4 {[%clk 0:00:08.4]} 29... Neg3 {[%clk 0:00:14.9]} 30. Rd1 {[%clk 0:00:04.8]}
30... c5 {[%clk 0:00:14.8]} 31. Bc6 {[%clk 0:00:04.5]} 31... Rc8 {[%clk
0:00:14]} 32. Bb7 {[%clk 0:00:04.2]} 32... Re8 {[%clk 0:00:13.5]} 33. a4 {[%clk
0:00:03.9]} 33... Ne3 {[%clk 0:00:11.8]} 34. Rd7 {[%clk 0:00:04.1]} 34... Nc4
{[%clk 0:00:10.2]} 35. Bd5 {[%clk 0:00:02.9]} 35... Nxe5 {[%clk 0:00:10]} 36.
fxe5 {[%clk 0:00:03.3]} 36... Rxe5 {[%clk 0:00:09.8]} 37. Bxf7+ {[%clk
0:00:03.4]} 37... Kf8 {[%clk 0:00:10]} 38. h4 {[%clk 0:00:03.1]} 38... Nf5
{[%clk 0:00:09.3]} 39. Bc4 {[%clk 0:00:02.2]} 39... Nxh4 {[%clk 0:00:09.5]} 40.
Rf7+ {[%clk 0:00:02.1]} 40... Ke8 {[%clk 0:00:09.7]} 41. Rb7 {[%clk 0:00:02.2]}
41... Re1+ {[%clk 0:00:09.1]} 42. Kc2 {[%clk 0:00:02.5]} 42... Rg1 {[%clk
0:00:09.3]} 43. Rxb6 {[%clk 0:00:02.5]} 43... Rxg5 {[%clk 0:00:10]} 44. a5
{[%clk 0:00:02.9]} 44... Rg2+ {[%clk 0:00:09.1]} 45. Kb1 {[%clk 0:00:03.4]}
45... Rg1+ {[%clk 0:00:09.5]} 46. Ka2 {[%clk 0:00:03.7]} 46... Nf3 {[%clk
0:00:09.8]} 47. a6 {[%clk 0:00:03.6]} 47... Rg2+ {[%clk 0:00:10.3]} 48. Rb2
{[%clk 0:00:02.9]} 48... Rxb2+ {[%clk 0:00:07.2]} 49. Kxb2 {[%clk 0:00:03.8]}
49... Ne5 {[%clk 0:00:06.5]} 50. Bb5+ {[%clk 0:00:04.3]} 50... Kd8 {[%clk
0:00:06.4]} 51. a7 {[%clk 0:00:05.2]} 51... c4 {[%clk 0:00:05]} 52. a8=Q+ {[%clk
0:00:06.1]} 52... Ke7 {[%clk 0:00:05.7]} 53. Qe4 {[%clk 0:00:06.1]} 53... Kf6
{[%clk 0:00:05.3]} 54. Bxc4 {[%clk 0:00:06.1]} 54... g5 {[%clk 0:00:05.4]} 55.
Bd3 {[%clk 0:00:05.1]} 55... g6 {[%clk 0:00:05.2]} 56. c4 {[%clk 0:00:05.5]}
56... g4 {[%clk 0:00:04.8]} 57. Qf4+ {[%clk 0:00:04.6]} 57... Ke6 {[%clk
0:00:05.3]} 58. Kc3 {[%clk 0:00:04.7]} 58... g5 {[%clk 0:00:03.2]} 59. Qxg5
{[%clk 0:00:04.4]} 1-0

[Event "*** Titled Tuesday Blitz"]
[Site "Chess.com"]
[Date "2020.04.21"]
[Round "5"]
[White "DaggiGretarsson"]
[Black "mbachez"]
[Result "1-0"]
[WhiteElo "2604"]
[BlackElo "2430"]
[TimeControl "180+1"]
[EndTime "10:57:59 PDT"]
[Termination "DaggiGretarsson won by resignation"]

1. d4 {[%clk 0:02:59.3]} 1... Nf6 {[%clk 0:02:59.2]} 2. c4 {[%clk 0:02:57]} 2...
Nc6 {[%clk 0:02:54.7]} 3. Nf3 {[%clk 0:02:51.2]} 3... e6 {[%clk 0:02:54.6]} 4.
g3 {[%clk 0:02:47.3]} 4... Bb4+ {[%clk 0:02:53.9]} 5. Bd2 {[%clk 0:02:47]} 5...
a5 {[%clk 0:02:53.7]} 6. Bg2 {[%clk 0:02:46.6]} 6... O-O {[%clk 0:02:53.7]} 7.
O-O {[%clk 0:02:46.5]} 7... Bxd2 {[%clk 0:02:53.8]} 8. Qxd2 {[%clk 0:02:46.1]}
8... d6 {[%clk 0:02:54.1]} 9. Nc3 {[%clk 0:02:44.7]} 9... e5 {[%clk 0:02:54.2]}
10. d5 {[%clk 0:02:39.1]} 10... Nb8 {[%clk 0:02:52.6]} 11. Ne1 {[%clk
0:02:38.8]} 11... Na6 {[%clk 0:02:48.6]} 12. Nd3 {[%clk 0:02:32.1]} 12... Bg4
{[%clk 0:02:38]} 13. h3 {[%clk 0:02:30.1]} 13... Bd7 {[%clk 0:02:20.3]} 14. e4
{[%clk 0:02:28]} 14... Nh5 {[%clk 0:02:15.8]} 15. Rae1 {[%clk 0:01:59.3]} 15...
g6 {[%clk 0:02:14.3]} 16. Kh2 {[%clk 0:01:56.9]} 16... Nc5 {[%clk 0:01:57.2]}
17. Nxc5 {[%clk 0:01:55.8]} 17... dxc5 {[%clk 0:01:55.6]} 18. f4 {[%clk
0:01:55.8]} 18... exf4 {[%clk 0:01:36.4]} 19. gxf4 {[%clk 0:01:54.8]} 19... Qh4
{[%clk 0:01:36.3]} 20. Qe3 {[%clk 0:01:43.4]} 20... b6 {[%clk 0:01:36.3]} 21. e5
{[%clk 0:01:43]} 21... Bf5 {[%clk 0:01:34.2]} 22. Be4 {[%clk 0:01:38.1]} 22...
Ng7 {[%clk 0:01:30.7]} 23. Qg3 {[%clk 0:01:30.9]} 23... Qxg3+ {[%clk 0:01:21.7]}
24. Kxg3 {[%clk 0:01:30.9]} 24... Rfd8 {[%clk 0:01:18.3]} 25. Rf2 {[%clk
0:01:12.5]} 25... a4 {[%clk 0:01:12.4]} 26. Rd2 {[%clk 0:00:58.9]} 26... a3
{[%clk 0:01:11.9]} 27. b3 {[%clk 0:00:57.9]} 27... Rd7 {[%clk 0:01:00.3]} 28.
Bf3 {[%clk 0:00:54]} 28... Rad8 {[%clk 0:00:58.9]} 29. Nb5 {[%clk 0:00:45.3]}
29... c6 {[%clk 0:00:50.7]} 30. Nd6 {[%clk 0:00:25.9]} 30... cxd5 {[%clk
0:00:50.4]} 31. cxd5 {[%clk 0:00:25.8]} 31... Rxd6 {[%clk 0:00:43.4]} 32. exd6
{[%clk 0:00:25.1]} 32... Bc8 {[%clk 0:00:40.6]} 33. Bg4 {[%clk 0:00:22.3]} 33...
f5 {[%clk 0:00:39.8]} 34. Be2 {[%clk 0:00:19.8]} 34... Rxd6 {[%clk 0:00:37.9]}
35. Bb5 {[%clk 0:00:12.6]} 35... Bb7 {[%clk 0:00:31.3]} 36. Re7 {[%clk
0:00:11.7]} 36... Ba8 {[%clk 0:00:22.4]} 37. Ra7 {[%clk 0:00:10.7]} 37... Bxd5
{[%clk 0:00:18.8]} 38. Rxd5 {[%clk 0:00:09.8]} 38... Rxd5 {[%clk 0:00:18.6]} 39.
Bc4 {[%clk 0:00:10.1]} 39... Nh5+ {[%clk 0:00:18.8]} 40. Kf3 {[%clk 0:00:09.8]}
40... Nf6 {[%clk 0:00:19.1]} 41. Rxa3 {[%clk 0:00:06.7]} 41... Kg7 {[%clk
0:00:19.1]} 42. Bxd5 {[%clk 0:00:04.6]} 42... Nxd5 {[%clk 0:00:19.3]} 43. Ra7+
{[%clk 0:00:05]} 43... Kf6 {[%clk 0:00:17.9]} 44. Rxh7 {[%clk 0:00:04.9]} 44...
Nc3 {[%clk 0:00:17.1]} 45. Rb7 {[%clk 0:00:04.3]} 45... Nb5 {[%clk 0:00:14.5]}
46. Rxb6+ {[%clk 0:00:03.6]} 46... Ke7 {[%clk 0:00:14.5]} 47. Rxb5 {[%clk
0:00:03.9]} 47... Kd6 {[%clk 0:00:15.4]} 48. Rb6+ {[%clk 0:00:04.3]} 48... Kd5
{[%clk 0:00:16.3]} 49. Rxg6 {[%clk 0:00:04.5]} 49... Kd4 {[%clk 0:00:17.2]} 50.
h4 {[%clk 0:00:04.3]} 50... Kc3 {[%clk 0:00:18.1]} 51. h5 {[%clk 0:00:04.9]}
51... Kb2 {[%clk 0:00:19]} 52. h6 {[%clk 0:00:05.6]} 52... Kxa2 {[%clk
0:00:19.9]} 53. h7 {[%clk 0:00:06.2]} 53... Kxb3 {[%clk 0:00:20.8]} 54. h8=Q
{[%clk 0:00:06.4]} 54... Kc4 {[%clk 0:00:21.7]} 55. Rd6 {[%clk 0:00:06.2]} 55...
Kb3 {[%clk 0:00:21.7]} 56. Qc8 {[%clk 0:00:06.6]} 56... c4 {[%clk 0:00:22.6]}
57. Rb6+ {[%clk 0:00:06.5]} 57... Kc2 {[%clk 0:00:22.8]} 58. Rc6 {[%clk
0:00:06.8]} 58... Kd3 {[%clk 0:00:23.7]} 59. Rxc4 {[%clk 0:00:06.7]} 59... Kd2
{[%clk 0:00:24.6]} 60. Rd4+ {[%clk 0:00:06.8]} 60... Ke1 {[%clk 0:00:24.6]} 61.
Qe6+ {[%clk 0:00:06.7]} 61... Kf1 {[%clk 0:00:24.2]} 62. Qe2+ {[%clk 0:00:06.7]}
1-0

[Event "*** Titled Tuesday Blitz"]
[Site "Chess.com"]
[Date "2020.04.21"]
[Round "5"]
[White "Sharpchess22"]
[Black "want2lose"]
[Result "0-1"]
[WhiteElo "2751"]
[BlackElo "2924"]
[TimeControl "180+1"]
[EndTime "10:58:02 PDT"]
[Termination "want2lose won by resignation"]

1. e4 {[%clk 0:03:00.9]} 1... e5 {[%clk 0:02:59.6]} 2. Nf3 {[%clk 0:03:00.8]}
2... Nc6 {[%clk 0:03:00.5]} 3. Bc4 {[%clk 0:03:00.3]} 3... Bc5 {[%clk
0:03:00.4]} 4. d3 {[%clk 0:02:59.9]} 4... Nf6 {[%clk 0:03:01]} 5. O-O {[%clk
0:02:58.2]} 5... h6 {[%clk 0:02:59.8]} 6. c3 {[%clk 0:02:57.5]} 6... O-O {[%clk
0:02:51.8]} 7. a4 {[%clk 0:02:54.4]} 7... a6 {[%clk 0:02:51]} 8. h3 {[%clk
0:02:39.7]} 8... d6 {[%clk 0:02:50.6]} 9. Re1 {[%clk 0:02:38]} 9... Re8 {[%clk
0:02:49.3]} 10. Nbd2 {[%clk 0:02:37.1]} 10... Be6 {[%clk 0:02:49]} 11. Bxe6
{[%clk 0:02:37.3]} 11... Rxe6 {[%clk 0:02:48.1]} 12. b4 {[%clk 0:02:38.2]} 12...
Ba7 {[%clk 0:02:47.8]} 13. Nf1 {[%clk 0:02:36.3]} 13... d5 {[%clk 0:02:44.6]}
14. Qc2 {[%clk 0:02:36]} 14... Qd7 {[%clk 0:02:07.6]} 15. b5 {[%clk 0:02:26.2]}
15... Ne7 {[%clk 0:01:58.3]} 16. exd5 {[%clk 0:02:20.3]} 16... Qxd5 {[%clk
0:01:59.2]} 17. c4 {[%clk 0:02:18.8]} 17... Qd6 {[%clk 0:01:59.2]} 18. Bb2
{[%clk 0:02:03.8]} 18... Ng6 {[%clk 0:01:59.2]} 19. Ng3 {[%clk 0:02:03.9]} 19...
Rae8 {[%clk 0:01:52.8]} 20. Rad1 {[%clk 0:01:57.5]} 20... Bc5 {[%clk 0:01:28.2]}
21. d4 {[%clk 0:01:43.6]} 21... exd4 {[%clk 0:01:27.1]} 22. Rxe6 {[%clk
0:01:43.2]} 22... Qxe6 {[%clk 0:01:23.4]} 23. Nxd4 {[%clk 0:01:43.3]} 23... Bxd4
{[%clk 0:01:16.1]} 24. Bxd4 {[%clk 0:01:44.2]} 24... Rd8 {[%clk 0:00:56]} 25. c5
{[%clk 0:01:22.6]} 25... axb5 {[%clk 0:00:53.7]} 26. axb5 {[%clk 0:01:22.5]}
26... c6 {[%clk 0:00:29.7]} 27. bxc6 {[%clk 0:01:12.7]} 27... bxc6 {[%clk
0:00:30.6]} 28. Nf5 {[%clk 0:01:02.4]} 28... Rd5 {[%clk 0:00:21.6]} 29. Nd6
{[%clk 0:00:58.1]} 29... Nf4 {[%clk 0:00:16.3]} 30. Be3 {[%clk 0:00:58.2]} 30...
Rxd1+ {[%clk 0:00:15.7]} 31. Qxd1 {[%clk 0:00:58]} 31... N4d5 {[%clk 0:00:16.3]}
32. Bd4 {[%clk 0:00:57.5]} 32... Ne4 {[%clk 0:00:15.3]} 33. Qg4 {[%clk
0:00:38.6]} 33... Qxg4 {[%clk 0:00:15.1]} 34. hxg4 {[%clk 0:00:38.3]} 34... Nec3
{[%clk 0:00:13.1]} 35. Kf1 {[%clk 0:00:35.1]} 35... f6 {[%clk 0:00:12.8]} 36. f3
{[%clk 0:00:33.4]} 36... Nb5 {[%clk 0:00:11.8]} 37. Nxb5 {[%clk 0:00:24.5]}
37... cxb5 {[%clk 0:00:12.7]} 38. Bf2 {[%clk 0:00:22.7]} 38... Kf7 {[%clk
0:00:11.9]} 39. Bg3 {[%clk 0:00:22]} 39... Ke6 {[%clk 0:00:10.2]} 40. Ke2 {[%clk
0:00:21.9]} 40... Nb4 {[%clk 0:00:09]} 41. Kd2 {[%clk 0:00:20.5]} 41... Nc6
{[%clk 0:00:08.7]} 42. Bd6 {[%clk 0:00:20]} 42... g6 {[%clk 0:00:08.7]} 43. f4
{[%clk 0:00:17.7]} 43... f5 {[%clk 0:00:08.3]} 44. gxf5+ {[%clk 0:00:16.8]}
44... gxf5 {[%clk 0:00:09.2]} 45. Ke3 {[%clk 0:00:14.7]} 45... Kd5 {[%clk
0:00:08.9]} 46. g4 {[%clk 0:00:13.8]} 46... fxg4 {[%clk 0:00:08.9]} 47. f5
{[%clk 0:00:14.2]} 47... b4 {[%clk 0:00:08.1]} 48. Bf8 {[%clk 0:00:13.5]} 48...
h5 {[%clk 0:00:07.9]} 49. Kf4 {[%clk 0:00:13]} 49... b3 {[%clk 0:00:07.6]} 50.
Bg7 {[%clk 0:00:12.8]} 50... Nd4 {[%clk 0:00:04.8]} 51. Bxd4 {[%clk 0:00:12.6]}
51... Kxd4 {[%clk 0:00:05.7]} 52. c6 {[%clk 0:00:13]} 52... b2 {[%clk
0:00:06.1]} 53. c7 {[%clk 0:00:13.9]} 53... b1=Q {[%clk 0:00:07]} 54. c8=Q
{[%clk 0:00:14.3]} 54... Qe4+ {[%clk 0:00:04.1]} 55. Kg5 {[%clk 0:00:14.3]}
55... g3 {[%clk 0:00:04.2]} 56. Qd7+ {[%clk 0:00:13.3]} 56... Ke3 {[%clk
0:00:04.4]} 57. Qa7+ {[%clk 0:00:13.2]} 57... Kf3 {[%clk 0:00:04.5]} 58. Qg1
{[%clk 0:00:12.6]} 58... g2 {[%clk 0:00:04.4]} 59. f6 {[%clk 0:00:12.5]} 59...
Qe3+ {[%clk 0:00:04.2]} 60. Qxe3+ {[%clk 0:00:12.1]} 60... Kxe3 {[%clk
0:00:05.1]} 61. f7 {[%clk 0:00:13]} 61... g1=Q+ {[%clk 0:00:06]} 62. Kh6 {[%clk
0:00:13.5]} 62... Qf2 {[%clk 0:00:06.1]} 63. Kg7 {[%clk 0:00:13.9]} 63... Qxf7+
{[%clk 0:00:06.3]} 64. Kxf7 {[%clk 0:00:14.2]} 64... h4 {[%clk 0:00:07.2]} 0-1

[Event "*** Titled Tuesday Blitz"]
[Site "Chess.com"]
[Date "2020.04.21"]
[Round "5"]
[White "maxip32"]
[Black "Arman_Hakemi"]
[Result "1-0"]
[WhiteElo "2428"]
[BlackElo "2555"]
[TimeControl "180+1"]
[EndTime "10:58:02 PDT"]
[Termination "maxip32 won by resignation"]

1. e4 {[%clk 0:03:00.9]} 1... c6 {[%clk 0:03:00]} 2. d4 {[%clk 0:03:00.6]} 2...
d5 {[%clk 0:03:00.2]} 3. e5 {[%clk 0:03:01.2]} 3... Bf5 {[%clk 0:02:59.8]} 4. h4
{[%clk 0:03:01.4]} 4... h5 {[%clk 0:02:59.5]} 5. c4 {[%clk 0:03:01.5]} 5... e6
{[%clk 0:02:59.9]} 6. Nc3 {[%clk 0:03:02]} 6... Nd7 {[%clk 0:03:00]} 7. cxd5
{[%clk 0:03:01.7]} 7... cxd5 {[%clk 0:02:57.5]} 8. Bd3 {[%clk 0:03:02.6]} 8...
Bxd3 {[%clk 0:02:56.1]} 9. Qxd3 {[%clk 0:03:03.5]} 9... Be7 {[%clk 0:02:55.6]}
10. Nf3 {[%clk 0:03:04.4]} 10... Nh6 {[%clk 0:02:55.4]} 11. Bg5 {[%clk
0:03:03.6]} 11... Nf5 {[%clk 0:02:55]} 12. g3 {[%clk 0:02:58]} 12... a6 {[%clk
0:02:51.9]} 13. O-O {[%clk 0:02:55.7]} 13... O-O {[%clk 0:02:51]} 14. Rac1
{[%clk 0:02:54.9]} 14... Rc8 {[%clk 0:02:51]} 15. Ne2 {[%clk 0:02:43.4]} 15...
Bxg5 {[%clk 0:02:46.1]} 16. Nxg5 {[%clk 0:02:42.2]} 16... g6 {[%clk 0:02:44]}
17. Rc3 {[%clk 0:02:30.1]} 17... Qb6 {[%clk 0:02:41.7]} 18. Rfc1 {[%clk
0:02:29.5]} 18... Rxc3 {[%clk 0:02:40.7]} 19. bxc3 {[%clk 0:02:30.4]} 19... Qc6
{[%clk 0:02:34.4]} 20. Qf3 {[%clk 0:02:27.8]} 20... b5 {[%clk 0:02:30.6]} 21.
Nf4 {[%clk 0:02:25.9]} 21... Nxd4 {[%clk 0:02:28.3]} 22. Qd1 {[%clk 0:02:22.9]}
22... Nf5 {[%clk 0:02:13.6]} 23. Nxh5 {[%clk 0:02:22.3]} 23... Nxe5 {[%clk
0:02:11.1]} 24. f4 {[%clk 0:02:07]} 24... Qc5+ {[%clk 0:02:02.1]} 25. Kh1 {[%clk
0:02:04.1]} 25... Nc4 {[%clk 0:01:54.4]} 26. Nf6+ {[%clk 0:01:59.2]} 26... Kg7
{[%clk 0:01:53.7]} 27. Nd7 {[%clk 0:01:58.9]} 27... Nxg3+ {[%clk 0:01:46.5]} 28.
Kg2 {[%clk 0:01:57.6]} 28... Qa7 {[%clk 0:01:20.4]} 29. Qd4+ {[%clk 0:01:51.1]}
29... Qxd4 {[%clk 0:01:15.7]} 30. cxd4 {[%clk 0:01:52]} 30... Rd8 {[%clk
0:01:12.4]} 31. Nc5 {[%clk 0:01:51.8]} 31... Nf5 {[%clk 0:00:51.4]} 32. Ngxe6+
{[%clk 0:01:49.5]} 32... fxe6 {[%clk 0:00:51.5]} 33. Nxe6+ {[%clk 0:01:49.8]}
33... Kf6 {[%clk 0:00:51.8]} 34. Nxd8 {[%clk 0:01:50.7]} 34... Nxd4 {[%clk
0:00:51.9]} 35. Re1 {[%clk 0:01:39.2]} 35... Nd2 {[%clk 0:00:21.2]} 36. Rd1
{[%clk 0:01:33.6]} 36... N2f3 {[%clk 0:00:19.7]} 37. Kg3 {[%clk 0:01:32.8]}
37... Kf5 {[%clk 0:00:18.9]} 38. Nc6 {[%clk 0:01:21.1]} 38... Ke4 {[%clk
0:00:14.6]} 39. Nxd4 {[%clk 0:01:19.6]} 39... Nxd4 {[%clk 0:00:15.5]} 40. Kg4
{[%clk 0:01:19.1]} 40... Nf5 {[%clk 0:00:14.8]} 41. Re1+ {[%clk 0:01:07.2]}
41... Ne3+ {[%clk 0:00:14.4]} 42. Kg5 {[%clk 0:00:41.7]} 42... d4 {[%clk
0:00:15.3]} 43. Kxg6 {[%clk 0:00:41.7]} 43... d3 {[%clk 0:00:15.6]} 44. h5
{[%clk 0:00:42.2]} 44... d2 {[%clk 0:00:15.6]} 45. Rg1 {[%clk 0:00:40.7]} 45...
Ng2 {[%clk 0:00:07]} 46. h6 {[%clk 0:00:34.2]} 46... Ne1 {[%clk 0:00:06.6]} 47.
h7 {[%clk 0:00:32.7]} 47... d1=Q {[%clk 0:00:06.4]} 48. h8=Q {[%clk 0:00:32.8]}
48... Qd6+ {[%clk 0:00:05]} 49. Qf6 {[%clk 0:00:29.5]} 49... Qxf6+ {[%clk
0:00:03.8]} 50. Kxf6 {[%clk 0:00:30.4]} 50... Nf3 {[%clk 0:00:04.3]} 51. Rc1
{[%clk 0:00:24.2]} 51... Kxf4 {[%clk 0:00:04.4]} 52. Ke6 {[%clk 0:00:20]} 52...
Ke4 {[%clk 0:00:04.1]} 53. Kd6 {[%clk 0:00:20.4]} 53... Nd4 {[%clk 0:00:02.6]}
54. Kc5 {[%clk 0:00:19.8]} 54... Ne6+ {[%clk 0:00:02.5]} 55. Kb6 {[%clk
0:00:19.4]} 55... Kd4 {[%clk 0:00:02.1]} 56. Kxa6 {[%clk 0:00:19.5]} 56... b4
{[%clk 0:00:01.6]} 57. Kb5 {[%clk 0:00:19.6]} 57... Nc5 {[%clk 0:00:01.1]} 58.
Rxc5 {[%clk 0:00:18.4]} 58... b3 {[%clk 0:00:01.6]} 59. axb3 {[%clk 0:00:18.1]}
59... Kd3 {[%clk 0:00:02.5]} 1-0